bitfinex-derivatives/quotes_BTCF0:USTF0_20260207
["timestamp","ask_amount","ask_price","bid_price","bid_amount"]
[1770475507722,0.014534,68878.0,68854.0,0.014539]
[1770475508117,0.014534,68876.0,68854.0,0.014539]
[1770475508326,0.59381436,68876.0,68851.0,0.014539]
[1770475509025,0.59381436,68876.0,68854.0,0.29262086]
[1770475509327,0.014533,68883.0,68860.0,0.56989274]
[1770475509527,0.014533,68880.0,68857.0,0.014538]
[1770475509723,0.57928036,68894.0,68855.0,0.55535574]
[1770475509927,0.57928036,68894.0,68854.0,0.29262086]
[1770475509928,0.014531,68890.0,68870.0,0.014535]
[1770475511024,0.57928036,68893.0,68867.0,0.55535574]
[1770475511231,0.014534,68878.0,68858.0,0.014538]
[1770475511417,0.56901865,68879.0,68860.0,0.014537]
[1770475512130,0.014532,68885.0,68864.0,0.014536]
[1770475512525,0.56901865,68886.0,68861.0,0.014537]
[1770475512731,0.014532,68884.0,68861.0,0.014537]
[1770475513231,0.58355065,68884.0,68861.0,0.014537]
[1770475513425,0.014533,68882.0,68861.0,0.014537]
[1770475514024,0.56901865,68904.0,68858.0,0.56523323]
[1770475514227,0.014531,68891.0,68870.0,0.014535]
[1770475514631,0.014531,68891.0,68868.0,0.56523323]
[1770475514632,0.01453,68897.0,68878.0,0.014534]
[1770475514827,0.01453,68894.0,68874.0,0.014534]
[1770475515829,0.014531,68892.0,68871.0,0.014535]
[1770475516035,0.014531,68890.0,68868.0,0.57976923]
[1770475516225,0.014531,68890.0,68870.0,0.014535]
[1770475517129,0.56901865,68890.0,68868.0,0.56523323]
[1770475517533,0.56901865,68890.0,68873.0,0.014535]
[1770475517728,0.56901865,68890.0,68870.0,0.014535]
[1770475518433,0.56901865,68890.0,68872.0,0.014535]
[1770475520332,0.56901865,68886.0,68859.0,0.56523323]
[1770475520532,0.56901865,68882.0,68854.0,0.85785409]
[1770475520738,0.56901865,68882.0,68855.0,0.56523323]
[1770475520937,0.56901865,68882.0,68865.0,0.014536]
[1770475521738,0.56901865,68891.0,68862.0,0.56523323]
[1770475521931,0.58354965,68891.0,68865.0,0.56523323]
[1770475522237,0.58355065,68887.0,68866.0,0.014536]
[1770475522436,0.58355065,68887.0,68868.0,0.014536]
[1770475522827,0.58355165,68883.0,68855.0,0.56523323]
[1770475523031,0.58355465,68869.0,68849.0,0.01454]
[1770475523233,0.56901865,68869.0,68847.0,0.84910308]
[1770475523741,0.56901865,68869.0,68842.0,0.00011222]
[1770475523742,0.014536,68866.0,68845.0,0.01454]
[1770475524132,0.014537,68864.0,68842.0,0.01465322]
[1770475524328,0.014537,68862.0,68842.0,0.00011222]
[1770475524539,0.014537,68861.0,68842.0,0.00011222]
[1770475525134,0.56901865,68870.0,68842.0,0.56534545]
[1770475525339,0.56901865,68870.0,68853.0,0.014539]
[1770475525538,0.56901865,68870.0,68850.0,0.014539]
[1770475525733,0.56901865,68870.0,68852.0,0.014539]
[1770475526941,0.56901865,68870.0,68854.0,0.014539]
[1770475527328,0.56901865,68870.0,68842.0,0.00011222]
[1770475527329,0.56901865,68867.0,68842.0,0.00011222]
[1770475527532,0.56901865,68867.0,68848.0,0.01454]
[1770475527837,0.58355465,68866.0,68845.0,0.014541]
[1770475528729,0.56901865,68866.0,68847.0,0.01454]
[1770475529440,0.58355165,68881.0,68861.0,0.014537]
[1770475529644,0.58355165,68881.0,68850.0,0.56523323]
[1770475529645,0.56901865,68881.0,68850.0,0.56523323]
[1770475529839,0.56901865,68881.0,68854.0,0.56523323]
[1770475530237,0.014531,68889.0,68868.0,0.014536]
[1770475530431,0.56901865,68890.0,68870.0,0.014535]
[1770475530743,0.014525,68919.0,68848.0,0.28863364]
[1770475530744,0.56901865,68873.0,68848.0,0.28863364]
[1770475530938,0.56901865,68867.0,68842.0,0.00011222]
[1770475531535,0.56901865,68867.0,68854.0,0.014539]
[1770475531734,0.56901865,68867.0,68843.0,0.56523323]
[1770475532042,0.014536,68869.0,68848.0,0.01454]
[1770475532245,0.58355465,68869.0,68848.0,0.01454]
[1770475532936,0.58355565,68865.0,68845.0,0.01454]
[1770475533146,0.58355565,68865.0,68842.0,0.01465322]
[1770475533541,0.014537,68863.0,68842.0,0.01465322]
[1770475533732,0.56901865,68853.0,68831.0,0.014543]
[1770475533937,0.014539,68852.0,68825.0,0.56523323]
[1770475534138,0.56901865,68862.0,68827.0,0.56523323]
[1770475534338,0.56901865,68862.0,68833.0,0.56523323]
[1770475534935,0.00011222,68861.0,68836.0,0.56523323]
[1770475535537,0.00011222,68861.0,68845.0,0.29289153]
[1770475535841,0.014536,68869.0,68847.0,0.01454]
[1770475536244,0.014536,68867.0,68847.0,0.01454]
[1770475536838,0.55892644,68864.0,68840.0,0.014542]
[1770475537439,0.55892644,68858.0,68834.0,0.1215]
[1770475537640,0.55892644,68868.0,68843.0,0.28388684]
[1770475537937,0.57346244,68868.0,68847.0,0.01454]
[1770475538344,0.57346244,68868.0,68845.0,0.01454]
[1770475538641,0.57346244,68868.0,68838.0,0.5749606]
[1770475538642,0.014538,68858.0,68838.0,0.5749606]
[1770475538844,0.57346444,68856.0,68836.0,0.28944014]
[1770475539047,0.55892644,68856.0,68837.0,0.014542]
[1770475539351,0.55892644,68868.0,68843.0,0.292418]
[1770475539737,0.55892644,68864.0,68843.0,0.292418]
[1770475540736,0.55892644,68861.0,68836.0,0.86440074]
[1770475541046,0.55892644,68861.0,68844.0,0.014541]
[1770475541444,0.55892644,68861.0,68841.0,0.014541]
[1770475541642,0.55892644,68861.0,68843.0,0.014541]
[1770475541944,0.55892644,68861.0,68845.0,0.014541]
[1770475542145,0.55892644,68861.0,68842.0,0.014541]
[1770475542541,0.55892644,68856.0,68836.0,0.30398214]
[1770475542740,0.55892644,68856.0,68840.0,0.014542]
[1770475543650,0.55892644,68856.0,68826.0,0.1215]
[1770475543837,0.55892644,68850.0,68832.0,0.014543]
[1770475544037,0.55892644,68844.0,68815.0,0.28630016]
[1770475544349,0.55892644,68842.0,68822.0,0.30663283]
[1770475544549,0.55892644,68842.0,68824.0,0.014545]
[1770475545249,0.55892644,68842.0,68815.0,0.28630016]
[1770475545447,0.57346944,68834.0,68815.0,0.28630016]
[1770475545841,0.55892644,68831.0,68808.0,0.014548]
[1770475546140,0.55892644,68831.0,68799.0,0.5749606]
[1770475546141,0.55892644,68827.0,68807.0,0.05200543]
[1770475546546,0.014545,68826.0,68807.0,0.03745743]
[1770475546748,0.57347144,68826.0,68804.0,0.014549]
[1770475546953,0.57347144,68826.0,68802.0,0.29377226]
[1770475546954,0.55892644,68822.0,68802.0,0.29377226]
[1770475547143,0.55892644,68822.0,68801.0,0.0147015]
[1770475547144,0.55892644,68820.0,68801.0,0.0001515]
[1770475547440,0.55892644,68820.0,68790.0,0.5749606]
[1770475547441,0.014547,68816.0,68793.0,0.014551]
[1770475547646,0.014546,68819.0,68790.0,0.5749606]
[1770475547849,0.55892644,68820.0,68801.0,0.01455]
[1770475548244,0.55892644,68807.0,68781.0,0.014554]
[1770475548546,0.55892644,68807.0,68778.0,0.28610446]
[1770475548547,0.55907794,68806.0,68779.0,0.5749606]
[1770475548850,0.55907794,68806.0,68784.0,0.014553]
[1770475549047,0.57347544,68805.0,68779.0,0.5749606]
[1770475549250,0.0001515,68806.0,68786.0,0.014553]
[1770475549643,0.0001515,68806.0,68789.0,0.014552]
[1770475549839,0.55892644,68815.0,68792.0,0.014552]
[1770475550043,0.55892644,68815.0,68787.0,0.5749606]
[1770475550346,0.55892644,68815.0,68800.0,0.01455]
[1770475550550,0.57347144,68824.0,68800.0,0.01455]
[1770475550742,0.57347144,68824.0,68790.0,0.5749606]
[1770475550743,0.014546,68821.0,68790.0,0.5749606]
[1770475550944,0.55892644,68824.0,68799.0,0.01455]
[1770475551144,0.55892644,68824.0,68801.0,0.01455]
[1770475551954,0.55892644,68824.0,68803.0,0.014549]
[1770475553950,0.55892644,68824.0,68799.0,0.01455]
[1770475554653,0.55892644,68824.0,68798.0,0.5749606]
[1770475555741,0.1456,68869.0,68785.0,0.28437571]
[1770475555742,0.55892644,68833.0,68814.0,0.014547]
[1770475556055,0.55892644,68833.0,68813.0,0.014547]
[1770475558849,0.55892644,68855.0,68813.0,0.5749606]
[1770475559055,0.55892644,68855.0,68825.0,0.5749606]
[1770475559452,0.55892644,68855.0,68834.0,0.014543]
[1770475559953,0.55892644,68855.0,68837.0,0.014542]
[1770475560256,0.55892644,68851.0,68822.0,0.014545]
[1770475560459,0.55892644,68840.0,68815.0,0.5749606]
[1770475560756,0.55892644,68858.0,68829.0,0.5749606]
[1770475560947,0.55892644,68858.0,68838.0,0.014542]
[1770475562750,0.55892644,68858.0,68844.0,0.014541]
[1770475563142,0.55892644,68858.0,68840.0,0.014541]
[1770475563349,0.55892644,68852.0,68831.0,0.014543]
[1770475563955,0.55892644,68852.0,68823.0,0.014545]
[1770475564151,0.55892644,68845.0,68813.0,0.5749606]
[1770475564457,0.55892644,68839.0,68818.0,0.014546]
[1770475565748,0.55892644,68839.0,68820.0,0.014546]
[1770475566357,0.55892644,68839.0,68825.0,0.014545]
[1770475566752,0.55892644,68839.0,68813.0,0.5895076]
[1770475566753,0.55892644,68839.0,68822.0,0.014545]
[1770475566952,0.55892644,68839.0,68819.0,0.014546]
[1770475567149,0.55892644,68839.0,68804.0,0.53350363]
[1770475567354,0.54645445,68832.0,68809.0,0.014548]
[1770475568156,0.54645445,68829.0,68811.0,0.014548]
[1770475568346,0.54645445,68839.0,68804.0,0.53350363]
[1770475568552,0.54645445,68839.0,68803.0,0.1215]
[1770475568553,0.54645445,68839.0,68817.0,0.014546]
[1770475568858,0.54645445,68839.0,68819.0,0.014546]
[1770475569061,0.56099645,68839.0,68819.0,0.014546]
[1770475569454,0.54645445,68837.0,68807.0,0.53350363]
[1770475569649,0.54645445,68834.0,68814.0,0.014547]
[1770475570246,0.01454,68848.0,68811.0,0.014548]
[1770475570247,0.56609287,68832.0,68811.0,0.014548]
[1770475570455,0.56609287,68832.0,68801.0,0.56420742]
[1770475570853,0.58063587,68832.0,68810.0,0.014548]
[1770475571053,0.58063587,68832.0,68801.0,0.56420742]
[1770475571449,0.58063587,68832.0,68800.0,0.1215]
[1770475571450,0.56609287,68832.0,68800.0,0.1215]
[1770475571650,0.56609287,68822.0,68800.0,0.1215]
[1770475571856,0.014547,68814.0,68798.0,0.00015263]
[1770475572160,0.56609287,68807.0,68778.0,0.28428841]
[1770475572465,0.56609287,68800.0,68782.0,0.014554]
[1770475572658,0.56609287,68809.0,68787.0,0.014553]
[1770475572856,0.014549,68803.0,68779.0,0.57876142]
[1770475573057,0.01455,68801.0,68779.0,0.57876142]
[1770475573253,0.01455,68801.0,68779.0,0.56420742]
[1770475573564,0.56620106,68802.0,68778.0,0.28428841]
[1770475573862,0.00010819,68802.0,68779.0,0.56420742]
[1770475575061,0.00010819,68802.0,68788.0,0.014552]
[1770475575258,0.014538,68858.0,68788.0,0.56420742]
[1770475575259,0.58063887,68820.0,68788.0,0.56420742]
[1770475575455,0.56609287,68820.0,68798.0,0.01455]
[1770475576161,0.014547,68815.0,68789.0,0.014552]
[1770475576366,0.56609287,68812.0,68785.0,0.30015442]
[1770475576565,0.56609287,68810.0,68785.0,0.30015442]
[1770475576864,0.58064187,68805.0,68781.0,0.014554]
[1770475577066,0.56613731,68804.0,68781.0,0.014554]
[1770475577458,0.56613731,68804.0,68765.0,0.1215]
[1770475577459,0.56609287,68792.0,68765.0,0.1215]
[1770475577659,0.56609287,68789.0,68767.0,0.014557]
[1770475577967,0.56609287,68812.0,68784.0,0.85861031]
[1770475578268,0.56609287,68812.0,68789.0,0.014552]
[1770475579359,0.014548,68811.0,68789.0,0.014552]
[1770475579969,0.014548,68808.0,68785.0,0.014553]
[1770475580178,0.56609287,68812.0,68784.0,0.85861031]
[1770475580677,0.56609287,68812.0,68790.0,0.014552]
[1770475581176,0.014548,68810.0,68787.0,0.014553]
[1770475582274,0.014549,68808.0,68785.0,0.56420742]
[1770475582772,0.014549,68808.0,68786.0,0.014553]
[1770475583174,0.56609287,68803.0,68784.0,0.29440289]
[1770475583375,0.56609287,68795.0,68777.0,0.28677798]
[1770475583569,0.56609287,68791.0,68758.0,0.56420742]
[1770475583776,0.58064487,68790.0,68758.0,0.56420742]
[1770475583972,0.58064487,68790.0,68763.0,0.014558]
[1770475583973,0.014553,68788.0,68763.0,0.014558]
[1770475584674,0.56609287,68771.0,68745.0,0.00013953]
[1770475584880,0.58064987,68769.0,68746.0,0.014561]
[1770475585172,0.014559,68759.0,68733.0,0.29494078]
[1770475585373,0.58065187,68756.0,68733.0,0.30950478]
[1770475585578,0.58065187,68756.0,68733.0,0.014564]
[1770475585776,0.56609287,68756.0,68736.0,0.014564]
[1770475586074,0.56609287,68766.0,68743.0,0.014562]
[1770475586280,0.56609287,68776.0,68741.0,0.56420742]
[1770475586580,0.56609287,68776.0,68745.0,0.56420742]
[1770475586776,0.56609287,68774.0,68739.0,0.56420742]
[1770475586980,0.014556,68772.0,68739.0,0.56420742]
[1770475587176,0.58064987,68770.0,68739.0,0.56420742]
[1770475587480,0.58064987,68770.0,68747.0,0.014561]
[1770475587783,0.56609287,68770.0,68739.0,0.56420742]
[1770475588080,0.014553,68789.0,68731.0,0.014565]
[1770475588081,0.014556,68775.0,68751.0,0.01456]
[1770475588276,0.014556,68775.0,68731.0,0.014565]
[1770475588277,0.58064987,68770.0,68745.0,0.014562]
[1770475589674,0.56609287,68767.0,68742.0,0.014562]
[1770475589874,0.56609287,68767.0,68747.0,0.014561]
[1770475590074,0.56609287,68767.0,68749.0,0.014561]
[1770475590477,0.014555,68776.0,68751.0,0.01456]
[1770475590672,0.56609287,68776.0,68741.0,0.68570742]
[1770475591271,0.014556,68773.0,68750.0,0.01456]
[1770475591475,0.58064787,68776.0,68750.0,0.01456]
[1770475591677,0.58064887,68774.0,68750.0,0.01456]
[1770475592181,0.58065087,68765.0,68741.0,0.1215]
[1770475592382,0.56609287,68765.0,68741.0,0.1215]
[1770475592573,0.56609287,68765.0,68745.0,0.014562]
[1770475593185,0.56609287,68765.0,68742.0,0.014562]
[1770475593979,0.56609287,68765.0,68746.0,0.014561]
[1770475594378,0.014556,68774.0,68748.0,0.014561]
[1770475594681,0.56609287,68771.0,68748.0,0.014561]
[1770475596081,0.55814868,68770.0,68748.0,0.014561]
[1770475596283,0.54359268,68770.0,68741.0,0.6711967]
[1770475596484,0.54359268,68770.0,68752.0,0.01456]
[1770475596682,0.014557,68766.0,68744.0,0.014562]
[1770475596894,0.55814968,68766.0,68744.0,0.014562]
[1770475598386,0.55814968,68766.0,68744.0,0.015562]
[1770475599681,0.54359268,68766.0,68744.0,0.015562]
[1770475599990,0.54359268,68766.0,68746.0,0.014561]
[1770475600186,0.54359268,68766.0,68744.0,0.001]
[1770475600889,0.54359268,68766.0,68745.0,0.014562]
[1770475601090,0.55814968,68766.0,68745.0,0.014562]
[1770475601787,0.014553,68789.0,68744.0,0.5506967]
[1770475601987,0.54359268,68783.0,68768.0,0.014557]
[1770475602287,0.014549,68807.0,68771.0,0.014556]
[1770475602288,0.54359268,68793.0,68771.0,0.014556]
[1770475602991,0.014552,68792.0,68771.0,0.014556]
[1770475603292,0.014552,68792.0,68760.0,0.5496967]
[1770475603293,0.55814468,68790.0,68768.0,0.014557]
[1770475603790,0.54359268,68790.0,68768.0,0.014557]
[1770475604284,0.55814468,68789.0,68768.0,0.014557]
[1770475604490,0.54359268,68789.0,68768.0,0.014557]
[1770475605190,0.54359268,68789.0,68768.0,0.015557]
[1770475606991,0.54359268,68789.0,68770.0,0.014556]
[1770475607393,0.54359268,68789.0,68767.0,0.014557]
[1770475607590,0.55814568,68788.0,68768.0,0.001]
[1770475608090,0.54359268,68783.0,68768.0,0.001]
[1770475608391,0.54359268,68778.0,68758.0,0.014559]
[1770475608790,0.54359268,68778.0,68755.0,0.014559]
[1770475608986,0.54359268,68778.0,68758.0,0.014559]
[1770475609186,0.54359268,68787.0,68770.0,0.014556]
[1770475610483,0.54359268,68787.0,68772.0,0.014556]
[1770475610890,0.54359268,68792.0,68772.0,0.014556]
[1770475611890,0.54359268,68782.0,68772.0,0.001]
[1770475612194,0.54359268,68782.0,68764.0,0.014558]
[1770475612396,0.55814668,68782.0,68761.0,0.014558]
[1770475613391,0.54359268,68792.0,68762.0,0.5496967]
[1770475613894,0.54359268,68788.0,68762.0,0.5496967]
[1770475614195,0.55814568,68784.0,68752.0,0.5496967]
[1770475614396,0.54359268,68784.0,68763.0,0.014558]
[1770475615096,0.54359268,68782.0,68760.0,0.014558]
[1770475615395,0.54359268,68782.0,68762.0,0.001]
[1770475616293,0.54359268,68779.0,68762.0,0.001]
[1770475616488,0.014555,68778.0,68762.0,0.001]
[1770475616685,0.54359268,68771.0,68743.0,0.11548097]
[1770475616886,0.54359268,68768.0,68742.0,0.5496967]
[1770475617289,0.54359268,68768.0,68747.0,0.014561]
[1770475617488,0.54359268,68766.0,68744.0,0.014562]
[1770475617992,0.54359268,68766.0,68746.0,0.014561]
[1770475618192,0.54359268,68766.0,68743.0,0.014562]
[1770475618501,0.54359268,68766.0,68747.0,0.001]
[1770475619091,0.54359268,68766.0,68747.0,0.015561]
[1770475619289,0.54359268,68766.0,68747.0,0.001]
[1770475620291,0.54359268,68766.0,68733.0,0.5496967]
[1770475620292,0.54359268,68766.0,68741.0,0.014562]
[1770475620492,0.54359268,68756.0,68723.0,0.11548097]
[1770475620790,0.54359268,68756.0,68718.0,0.28708243]
[1770475620791,0.54359268,68752.0,68732.0,0.014564]
[1770475622195,0.54359268,68762.0,68734.0,0.5496967]
[1770475622495,0.014552,68790.0,68738.0,0.5496967]
[1770475622496,0.54359268,68770.0,68738.0,0.5496967]
[1770475623087,0.54359268,68770.0,68751.0,0.01456]
[1770475623902,0.54359268,68770.0,68740.0,0.5496967]
[1770475624491,0.54359268,68770.0,68751.0,0.001]
[1770475624699,0.44491422,68790.0,68758.0,0.5496967]
[1770475624700,0.54359268,68789.0,68758.0,0.5496967]
[1770475624895,0.54359268,68789.0,68768.0,0.014557]
[1770475627595,0.56164839,68801.0,68769.0,0.5345406]
[1770475627795,0.56164839,68801.0,68760.0,0.014558]
[1770475627796,0.56164839,68801.0,68760.0,0.5490986]
[1770475628103,0.014547,68814.0,68760.0,0.5490986]
[1770475628104,0.56164839,68788.0,68765.0,0.014557]
[1770475628296,0.56164839,68788.0,68767.0,0.014557]
[1770475628489,0.56164839,68788.0,68760.0,0.5345406]
[1770475628490,0.56164839,68788.0,68769.0,0.014557]
[1770475629706,0.56164839,68788.0,68760.0,0.5345406]
[1770475630603,0.56164839,68788.0,68760.0,0.5355406]
[1770475630996,0.56164839,68788.0,68769.0,0.014557]
[1770475631704,0.56164839,68788.0,68775.0,0.014555]
[1770475631905,0.56164839,68788.0,68765.0,0.54022161]
[1770475632305,0.56164839,68788.0,68773.0,0.014556]
[1770475633997,0.56164839,68788.0,68765.0,0.54022161]
[1770475634200,0.59226655,68821.0,68730.0,0.42723479]
[1770475634201,0.57103545,68773.0,68744.0,0.54022161]
[1770475634508,0.57103545,68772.0,68744.0,0.55478361]
[1770475635006,0.57103545,68772.0,68744.0,0.54022161]
[1770475635207,0.014558,68765.0,68736.0,0.014564]
[1770475635402,0.57103545,68762.0,68735.0,0.55478561]
[1770475635902,0.58559345,68762.0,68744.0,0.001]
[1770475636102,0.58559445,68756.0,68727.0,0.014565]
[1770475637204,0.58559445,68756.0,68726.0,0.54022161]
[1770475637205,0.57103545,68756.0,68730.0,0.014565]
[1770475637407,0.57103545,68756.0,68736.0,0.001]
[1770475638205,0.57103545,68756.0,68730.0,0.014565]
[1770475639211,0.014556,68773.0,68726.0,0.55478761]
[1770475639212,0.57103545,68754.0,68726.0,0.55478761]
[1770475640415,0.57103545,68754.0,68729.0,0.014565]
[1770475640808,0.57103545,68754.0,68712.0,0.014569]
[1770475640809,0.57103545,68721.0,68710.0,0.00017777]
[1770475641008,0.57103545,68713.0,68693.0,0.0002]
[1770475641312,0.57103545,68711.0,68693.0,0.0002]
[1770475641513,0.01457,68707.0,68693.0,0.0002]
[1770475641709,0.014571,68703.0,68683.0,0.54022161]
[1770475641904,0.014567,68723.0,68675.0,0.014577]
[1770475641905,0.014571,68701.0,68675.0,0.0002]
[1770475642217,0.00011998,68702.0,68686.0,0.014574]
[1770475643608,0.00011998,68702.0,68682.0,0.014575]
[1770475645111,0.58572643,68702.0,68674.0,0.014777]
[1770475645513,0.57103545,68690.0,68674.0,0.0002]
[1770475645708,0.014569,68713.0,68659.0,0.01458]
[1770475645709,0.57103545,68685.0,68659.0,0.01458]
[1770475646203,0.57103545,68683.0,68654.0,0.54042161]
[1770475646407,0.57103545,68683.0,68654.0,0.54022161]
[1770475646612,0.014576,68680.0,68651.0,0.014582]
[1770475646819,0.014576,68678.0,68650.0,0.0001788]
[1770475647017,0.58561145,68678.0,68650.0,0.0001788]
[1770475647617,0.57103545,68653.0,68635.0,0.0002]
[1770475647816,0.014582,68651.0,68623.0,0.54022161]
[1770475648021,0.58561745,68651.0,68623.0,0.54022161]
[1770475648215,0.57103545,68651.0,68622.0,0.0002]
[1770475648619,0.57103545,68649.0,68613.0,0.0002]
[1770475648924,0.57103545,68647.0,68613.0,0.0002]
[1770475649220,0.57103545,68641.0,68613.0,0.0002]
[1770475649421,0.5711444,68640.0,68613.0,0.0002]
[1770475649627,0.5711444,68640.0,68598.0,0.2886937]
[1770475649628,0.5711444,68640.0,68607.0,0.54042161]
[1770475650110,0.5711444,68640.0,68622.0,0.001]
[1770475650826,0.5711444,68640.0,68616.0,0.54022161]
[1770475650827,0.00010895,68640.0,68616.0,0.54022161]
[1770475651626,0.5711444,68640.0,68613.0,0.54042161]
[1770475651823,0.5711444,68640.0,68616.0,0.0002]
[1770475652724,0.57103545,68634.0,68616.0,0.0002]
[1770475652928,0.57103545,68630.0,68609.0,0.0002]
[1770475653329,0.57103545,68628.0,68609.0,0.0002]
[1770475654128,0.57103545,68628.0,68604.0,0.0002]
[1770475654334,0.57103545,68620.0,68599.0,0.0002]
[1770475654526,0.00016343,68619.0,68599.0,0.0002]
[1770475654727,0.00016343,68619.0,68599.0,0.54042161]
[1770475654930,0.00016343,68619.0,68600.0,0.014592]
[1770475655125,0.00016343,68619.0,68599.0,0.54042161]
[1770475655329,0.00016343,68619.0,68608.0,0.0002]
[1770475655528,0.57103545,68632.0,68608.0,0.0002]
[1770475656529,0.57103545,68632.0,68602.0,0.56001124]
[1770475656530,0.00015677,68631.0,68602.0,0.56001124]
[1770475657229,0.14834587,68650.0,68613.0,0.54541924]
[1770475657230,0.56596499,68643.0,68613.0,0.54541924]
[1770475657436,0.56596499,68663.0,68624.0,0.54541924]
[1770475657635,0.56596499,68663.0,68633.0,0.014585]
[1770475657832,0.56596499,68663.0,68637.0,0.014585]
[1770475658339,0.56596499,68676.0,68642.0,0.54541924]
[1770475659440,0.56596499,68676.0,68647.0,0.56000124]
[1770475659936,0.56596499,68676.0,68650.0,0.014582]
[1770475660139,0.014575,68685.0,68654.0,0.56000024]
[1770475660347,0.58053999,68685.0,68654.0,0.56000024]
[1770475660645,0.56596499,68680.0,68649.0,0.014582]
[1770475660836,0.56596499,68680.0,68652.0,0.014581]
[1770475661341,0.58053899,68689.0,68651.0,0.54541924]
[1770475661543,0.58053899,68689.0,68658.0,0.01458]
[1770475661738,0.014575,68682.0,68651.0,0.54541924]
[1770475661940,0.56596499,68669.0,68650.0,0.001]
[1770475662236,0.56596499,68669.0,68647.0,0.0002]
[1770475662451,0.56596499,68660.0,68630.0,0.56000524]
[1770475662835,0.56596499,68658.0,68630.0,0.014586]
[1770475663039,0.56596499,68658.0,68627.0,0.014587]
[1770475663736,0.56596499,68658.0,68607.0,0.54561924]
[1770475663939,0.56596499,68658.0,68629.0,0.014586]
[1770475663940,0.56596499,68656.0,68629.0,0.014586]
[1770475664243,0.014582,68649.0,68620.0,0.014588]
[1770475664435,0.58054799,68647.0,68617.0,0.54541924]
[1770475664630,0.014578,68667.0,68609.0,0.014591]
[1770475664631,0.014584,68640.0,68609.0,0.014591]
[1770475664838,0.56596499,68640.0,68612.0,0.01459]
[1770475665227,0.56596499,68640.0,68607.0,0.014591]
[1770475665434,0.58054899,68639.0,68610.0,0.01459]
[1770475665737,0.014581,68656.0,68606.0,0.56001024]
[1770475665738,0.58054999,68634.0,68606.0,0.56001024]
[1770475665939,0.014581,68656.0,68592.0,0.0002]
[1770475665940,0.014584,68641.0,68612.0,0.01459]
[1770475666246,0.014581,68656.0,68609.0,0.54541924]
[1770475666247,0.014585,68638.0,68609.0,0.54541924]
[1770475666436,0.014585,68638.0,68610.0,0.56000924]
[1770475666636,0.014584,68639.0,68613.0,0.01459]
[1770475667434,0.014583,68647.0,68616.0,0.56000824]
[1770475667643,0.014583,68647.0,68618.0,0.0002]
[1770475667945,0.014583,68647.0,68619.0,0.56000724]
[1770475668243,0.56596499,68652.0,68622.0,0.56000724]
[1770475668244,0.014582,68651.0,68622.0,0.56000724]
[1770475669444,0.014582,68651.0,68625.0,0.56000624]
[1770475669630,0.56596499,68652.0,68625.0,0.56000624]
[1770475669838,0.56596499,68652.0,68628.0,0.014587]
[1770475670141,0.56596499,68652.0,68625.0,0.54541924]
[1770475670536,0.56596499,68652.0,68626.0,0.56000624]
[1770475670736,0.58054699,68652.0,68626.0,0.54541924]
[1770475670935,0.58054699,68652.0,68626.0,0.56000624]
[1770475671439,0.58054699,68652.0,68630.0,0.014586]
[1770475671440,0.56596499,68652.0,68630.0,0.014586]
[1770475671644,0.56596499,68665.0,68638.0,0.54541924]
[1770475671840,0.56596499,68665.0,68643.0,0.014583]
[1770475672437,0.56596499,68691.0,68641.0,0.54541924]
[1770475672739,0.58053899,68686.0,68659.0,0.01458]
[1770475673544,0.014575,68683.0,68655.0,0.014581]
[1770475674134,0.58053999,68683.0,68655.0,0.014581]
[1770475674344,0.014578,68667.0,68642.0,0.56000324]
[1770475674538,0.56596499,68670.0,68642.0,0.54541924]
[1770475675034,0.56596499,68670.0,68647.0,0.014582]
[1770475675234,0.56596499,68670.0,68643.0,0.014583]
[1770475675441,0.56596499,68666.0,68641.0,0.001]
[1770475675847,0.56596499,68666.0,68631.0,0.54541924]
[1770475676438,0.014579,68663.0,68637.0,0.014585]
[1770475677248,0.58054399,68663.0,68637.0,0.014585]
[1770475677840,0.01458,68660.0,68633.0,0.014585]
[1770475678346,0.58054499,68660.0,68633.0,0.014585]
[1770475678948,0.56596499,68660.0,68631.0,0.54541924]
[1770475679152,0.56596499,68660.0,68636.0,0.014585]
[1770475679448,0.56596499,68658.0,68632.0,0.014586]
[1770475679640,0.56596499,68658.0,68635.0,0.014585]
[1770475680448,0.56596499,68658.0,68637.0,0.014584]
[1770475680751,0.01458,68657.0,68633.0,0.014585]
[1770475681250,0.58054499,68657.0,68630.0,0.014586]
[1770475681846,0.58054499,68657.0,68632.0,0.014586]
[1770475682243,0.58054499,68657.0,68629.0,0.014586]
[1770475682750,0.58054499,68657.0,68632.0,0.014586]
[1770475683344,0.014578,68671.0,68622.0,0.54541924]
[1770475683345,0.56596499,68653.0,68622.0,0.54541924]
[1770475683544,0.56596499,68648.0,68624.0,0.014587]
[1770475684648,0.56596499,68648.0,68604.0,0.9428]
[1770475684649,0.56596499,68638.0,68603.0,0.54561924]
[1770475684851,0.56596499,68651.0,68632.0,0.001]
[1770475685448,0.01458,68659.0,68636.0,0.014585]
[1770475685649,0.56596499,68660.0,68636.0,0.014585]
[1770475685951,0.56596499,68660.0,68639.0,0.014584]
[1770475686250,0.56596499,68660.0,68615.0,0.94284]
[1770475686251,0.56596499,68660.0,68640.0,0.014584]
[1770475687049,0.43036222,68686.0,68634.0,0.55444908]
[1770475687256,0.56696618,68671.0,68641.0,0.55444908]
[1770475687449,0.56696618,68665.0,68647.0,0.0002]
[1770475688654,0.58154518,68665.0,68640.0,0.014584]
[1770475688849,0.56696618,68662.0,68639.0,0.014584]
[1770475689646,0.56696618,68662.0,68638.0,0.014584]
[1770475689847,0.56696618,68662.0,68640.0,0.014584]
[1770475690243,0.56696618,68662.0,68642.0,0.014583]
[1770475690448,0.56696618,68662.0,68639.0,0.014584]
[1770475690749,0.56003395,68652.0,68627.0,0.014587]
[1770475691250,0.56003395,68643.0,68619.0,0.014588]
[1770475691655,0.014584,68642.0,68619.0,0.014588]
[1770475691857,0.56003395,68643.0,68619.0,0.014588]
[1770475692654,0.57461695,68643.0,68619.0,0.014588]
[1770475692855,0.56003395,68643.0,68612.0,0.56115221]
[1770475693051,0.56003395,68643.0,68624.0,0.014587]
[1770475693252,0.56003395,68643.0,68621.0,0.014588]
[1770475693453,0.56003395,68643.0,68624.0,0.014587]
[1770475693654,0.56003395,68643.0,68614.0,0.56115221]
[1770475693655,0.56003395,68652.0,68628.0,0.014586]
[1770475694056,0.57461595,68651.0,68628.0,0.014586]
[1770475694259,0.56003395,68651.0,68628.0,0.014586]
[1770475694559,0.56003395,68651.0,68630.0,0.014586]